bitfinex-derivatives/quotes_ETHF0:USTF0_20250903
["timestamp","ask_amount","ask_price","bid_price","bid_amount"]
[1756920885087,0.7085,4480.6,4480.5,3.4146]
[1756920885278,1.22678903,4480.6,4480.5,3.4146]
[1756920886282,0.72378903,4480.6,4480.5,3.9018]
[1756920886478,0.74828903,4480.6,4480.5,4.0204]
[1756920887781,1.45678903,4480.6,4480.5,3.2078]
[1756920888278,1.45678903,4480.6,4480.5,3.9018]
[1756920888488,1.45678903,4480.6,4480.5,3.604]
[1756920888878,1.45678903,4480.6,4480.5,3.4146]
[1756920889979,1.22678903,4480.6,4480.5,3.9018]
[1756920890286,0.51828903,4480.6,4480.5,4.0204]
[1756920890486,0.74828903,4480.6,4480.5,4.0204]
[1756920890682,0.74828903,4480.6,4480.5,3.9018]
[1756920891085,1.45678903,4480.6,4480.5,3.604]
[1756920891286,1.45678903,4480.6,4480.5,3.4146]
[1756920891789,1.45678903,4480.6,4480.5,3.2078]
[1756920892085,2.65211221,4480.6,4480.5,3.2078]
[1756920892480,2.65211221,4480.6,4480.5,3.4146]
[1756920893384,1.45678903,4480.6,4480.5,3.604]
[1756920893590,0.74828903,4480.6,4480.5,3.9018]
[1756920893781,1.42975852,4480.6,4480.5,3.9018]
[1756920893982,1.94804755,4480.6,4480.5,3.9018]
[1756920894288,0.51828903,4480.6,4480.5,3.9018]
[1756920894486,0.74828903,4480.6,4480.5,3.9018]
[1756920894984,1.45678903,4480.6,4480.5,3.604]
[1756920895185,1.45678903,4480.6,4480.5,3.4146]
[1756920896186,1.45678903,4480.6,4480.5,3.9018]
[1756920896692,1.45678903,4480.6,4480.5,3.4146]
[1756920896896,1.45678903,4480.6,4480.5,3.2078]
[1756920898688,1.45678903,4480.6,4479.7,0.2978]
[1756920898689,0.2055,4480.1,4480.0,3.604]
[1756920898990,2.14027966,4480.1,4480.0,3.604]
[1756920899287,1.45578903,4480.1,4480.0,0.2068]
[1756920899689,0.406,4479.6,4479.5,3.4146]
[1756920899887,0.9375,4479.6,4479.5,3.4146]
[1756920900089,1.45578903,4479.6,4479.5,3.4146]
[1756920900286,1.45578903,4479.6,4479.5,3.604]
[1756920900692,1.45578903,4479.6,4479.5,0.2068]
[1756920901394,0.51828903,4479.6,4479.5,0.3962]
[1756920901593,0.51828903,4479.6,4479.5,8.0204]
[1756920901792,2.08996528,4480.5,4479.5,8.0204]
[1756920901793,1.20240157,4480.0,4479.5,8.0204]
[1756920901999,0.23,4480.4,4480.3,0.694]
[1756920902191,0.23,4480.4,4480.3,3.9018]
[1756920902594,1.20240157,4480.9,4480.3,3.9018]
[1756920902897,0.23,4480.8,4480.6,0.2978]
[1756920903293,1.20240157,4481.1,4481.0,0.4164]
[1756920903500,1.20240157,4481.4,4481.0,3.3264]
[1756920903805,0.5325,4481.3,4481.0,3.3264]
[1756920904109,1.43240157,4481.3,4481.0,3.3264]
[1756920904308,0.3025,4481.1,4481.0,3.2078]
[1756920904507,0.1171,4481.0,4480.6,0.2978]
[1756920904804,0.23,4480.9,4480.6,0.2978]
[1756920905405,0.23,4480.9,4480.5,0.1186]
[1756920905907,0.23,4480.9,4480.6,0.2978]
[1756920906106,0.23,4480.9,4480.5,0.1186]
[1756920906303,0.23,4480.9,4480.8,0.3962]
[1756920906608,0.23,4480.9,4480.8,0.694]
[1756920907401,0.9385,4480.9,4480.4,3.2078]
[1756920907707,0.8256,4480.5,4480.4,3.2078]
[1756920907895,0.4196,4480.5,4480.4,3.2078]
[1756920908098,0.4196,4480.5,4479.8,3.2078]
[1756920908297,0.5325,4480.4,4479.8,3.2078]
[1756920908501,4.41020157,4480.9,4479.9,0.2978]
[1756920908707,0.5325,4480.8,4480.1,0.2978]
[1756920909407,0.1076,4480.7,4480.1,0.2978]
[1756920910100,0.1076,4480.7,4480.5,0.1186]
[1756920910307,0.1076,4480.7,4480.6,0.2978]
[1756920910504,0.3025,4481.6,4480.6,0.2978]
[1756920910706,1.20240157,4481.8,4481.2,0.2978]
[1756920910909,0.23,4481.7,4481.1,3.2078]
[1756920911110,0.5325,4481.7,4481.2,0.2978]
[1756920911310,0.5325,4481.7,4481.1,3.5056]
[1756920911512,33.35640157,4481.9,4481.1,3.5056]
[1756920911513,0.3025,4481.5,4481.2,0.2978]
[1756920911711,0.3025,4481.5,4481.2,0.3051]
[1756920911909,0.3135,4481.5,4481.2,0.3051]
[1756920912103,0.23,4481.6,4481.2,0.3051]
[1756920912305,0.23,4481.5,4481.2,0.3051]
[1756920912708,0.3135,4481.4,4481.2,0.3051]
[1756920913016,0.23,4481.5,4481.1,3.2078]
[1756920913315,0.5435,4481.5,4481.2,0.3051]
[1756920913717,0.3135,4481.5,4481.4,0.3876]
[1756920914015,0.5435,4481.5,4481.4,0.6927]
[1756920914211,0.5435,4481.5,4481.4,0.3876]
[1756920914212,1.45146628,4481.5,4481.4,0.3876]
[1756920914519,0.705,4481.2,4481.1,3.2078]
[1756920914719,1.22146628,4481.2,4481.1,3.4022]
[1756920915118,1.02646628,4481.2,4481.1,3.9005]
[1756920915518,1.45146628,4481.2,4481.1,3.2078]
[1756920916119,1.02646628,4481.2,4481.1,3.5954]
[1756920916413,0.74646628,4481.2,4481.1,3.9005]
[1756920916714,1.45146628,4481.2,4481.1,3.2078]
[1756920917513,1.45146628,4481.2,4481.1,3.4022]
[1756920920218,1.45146628,4481.2,4481.1,3.2078]
[1756920920719,0.3135,4481.1,4480.5,3.2078]
[1756920920914,0.3135,4480.9,4480.5,3.5129]
[1756920921113,0.705,4480.9,4480.8,0.1944]
[1756920921313,1.22136698,4480.9,4480.8,0.1944]
[1756920922315,0.1965,4480.6,4480.5,3.4022]
[1756920922520,0.934,4480.6,4480.5,3.4022]
[1756920922922,0.229,4480.6,4480.5,3.9005]
[1756920923124,0.229,4480.6,4480.5,3.966]
[1756920923323,0.3135,4481.1,4480.5,3.966]
[1756920923522,0.74536972,4481.0,4480.6,0.3051]
[1756920923823,0.51636972,4480.9,4480.8,0.3876]
[1756920924123,0.51636972,4480.9,4480.8,0.6927]
[1756920924722,0.82986972,4480.9,4480.8,0.6927]
[1756920925626,1.02636972,4480.9,4480.8,0.6927]
[1756920925821,1.02636972,4480.9,4480.8,0.3876]
[1756920926222,1.22136972,4480.9,4480.8,0.3876]
[1756920926920,0.51636972,4480.9,4480.8,0.6927]
[1756920927122,1.25536972,4480.9,4480.8,0.6927]
[1756920927623,0.51636972,4480.9,4480.8,0.6927]
[1756920927924,0.229,4480.9,4480.8,0.6927]
[1756920928121,0.74536972,4480.9,4480.8,0.6927]
[1756920928323,0.51636972,4480.9,4480.8,0.6927]
[1756920928527,0.5059,4481.5,4481.4,0.1944]
[1756920928728,1.0484,4481.5,4481.4,0.1944]
[1756920928926,1.56487527,4481.5,4481.4,0.1944]
[1756920930428,0.51647527,4481.5,4481.4,0.6927]
[1756920930733,0.51,4482.4,4482.3,0.3876]
[1756920930927,0.739,4482.4,4482.3,0.3876]
[1756920931122,0.51,4482.4,4482.3,0.3876]
[1756920931332,0.739,4482.4,4482.3,0.6927]
[1756920931831,0.934,4482.4,4482.3,0.1944]
[1756920932029,0.8194,4482.0,4481.9,3.4022]
[1756920932725,0.8194,4482.0,4481.9,0.1944]
[1756920932925,0.5059,4481.5,4481.4,3.4022]
[1756920933231,0.8194,4481.5,4481.4,3.4022]
[1756920933434,0.8194,4481.5,4481.4,3.5954]
[1756920933629,0.705,4481.5,4481.4,3.9005]
[1756920933831,0.229,4481.7,4481.6,0.3876]
[1756920934029,0.739,4481.7,4481.6,0.6927]
[1756920934532,0.229,4481.7,4481.6,0.6927]
[1756920935034,0.4279,4482.0,4481.7,0.3051]
[1756920935333,0.229,4481.8,4481.7,0.6927]
[1756920935532,0.5425,4481.8,4481.7,0.6927]
[1756920936319,0.739,4481.8,4481.7,0.6927]
[1756920937031,0.229,4481.8,4481.7,0.6927]
[1756920938332,0.229,4482.0,4481.9,0.3876]
[1756920938528,0.229,4482.0,4481.4,3.5129]
[1756920938529,1.0484,4482.0,4481.4,3.5129]
[1756920938723,0.8194,4481.5,4481.4,3.5954]
[1756920939227,0.3434,4482.0,4481.9,0.6927]
[1756920939228,0.51,4482.0,4481.9,0.6927]
[1756920939434,0.739,4482.0,4481.9,0.6927]
[1756920939622,1.0484,4482.0,4481.5,0.3051]
[1756920939827,0.8194,4481.5,4481.4,3.4022]
[1756920940333,0.8194,4481.5,4481.4,3.5954]
[1756920940530,0.8194,4481.5,4481.4,3.2078]
[1756920940930,0.1144,4481.0,4480.9,0.1944]
[1756920941131,0.7349,4481.0,4480.8,3.2078]
[1756920941329,0.3135,4480.9,4480.8,3.2078]
[1756920941529,0.705,4480.9,4480.8,3.9005]
[1756920941732,0.51,4480.9,4480.8,3.9005]
[1756920942327,0.705,4480.9,4480.8,3.5954]
[1756920942634,1.22480536,4480.9,4480.8,3.5954]
[1756920943334,1.22480536,4480.9,4480.8,3.2078]
[1756920944326,0.51980536,4480.9,4480.8,3.9095]
[1756920944727,1.01980536,4480.9,4480.8,3.9095]
[1756920945031,1.0197898,4480.9,4480.8,3.9095]
[1756920945628,1.2147898,4480.9,4480.8,3.6085]
[1756920946526,1.2147898,4480.9,4480.8,3.9095]
[1756920946731,1.21476051,4480.9,4480.8,3.6085]
[1756920947438,1.21476051,4480.9,4480.8,3.9095]
[1756920947638,1.21476051,4480.9,4480.8,3.6085]
[1756920948336,0.4017,4480.9,4480.3,3.2078]
[1756920948636,0.695,4480.4,4479.8,3.2078]
[1756920948834,0.1231,4480.5,4479.8,3.2078]
[1756920948835,0.695,4479.9,4479.8,3.2078]
[1756920949039,1.21483874,4479.9,4479.8,3.2078]
[1756920949435,1.22582222,4479.9,4479.8,3.2078]
[1756920950141,0.1231,4479.5,4479.3,3.2078]
[1756920950340,0.6307,4479.4,4479.3,3.4122]
[1756920950635,0.924,4479.4,4479.3,3.4122]
[1756920951142,0.924,4479.4,4479.3,3.6085]
[1756920951729,0.924,4479.4,4479.3,3.9095]
[1756920952250,0.5,4480.3,4480.2,0.4007]
[1756920952542,1.25918068,4480.3,4480.2,0.4007]
[1756920953039,1.03018068,4480.3,4480.2,0.7017]
[1756920953240,1.25918068,4480.3,4480.2,0.7017]
[1756920953937,1.03018068,4480.3,4480.2,0.7017]
[1756920954245,1.25918068,4480.3,4480.2,0.7017]
[1756920955539,1.25918068,4480.3,4480.2,0.4007]
[1756920955735,0.75918068,4480.3,4480.2,0.7017]
[1756920955942,3.5011,4480.8,4480.2,0.7017]
[1756920956141,0.75889092,4480.7,4480.3,0.301]
[1756920956341,0.75889092,4480.7,4480.5,0.7017]
[1756920956342,0.52989092,4480.6,4480.5,0.7017]
[1756920956542,0.52989092,4480.6,4480.5,0.7672]
[1756920956844,0.5223,4480.9,4480.8,0.7017]
[1756920957147,1.45381789,4480.9,4480.8,0.4007]
[1756920957547,0.82311789,4480.9,4480.8,0.7017]
[1756920957846,1.05211789,4480.9,4480.8,0.7017]
[1756920958239,1.16051789,4480.9,4480.3,3.2078]
[1756920958440,0.5,4480.4,4480.3,3.9095]
[1756920958634,0.729,4480.4,4480.3,3.9095]
[1756920958841,0.229,4480.4,4480.3,3.9095]
[1756920960649,0.5223,4480.4,4480.3,3.9095]
[1756920961147,0.229,4480.4,4480.3,3.9095]
[1756920962246,0.729,4480.4,4480.3,3.9095]
[1756920962444,0.924,4480.4,4480.3,3.4122]
[1756920962645,1.45404034,4480.4,4480.3,3.4122]
[1756920963344,1.45404034,4480.4,4480.3,3.9095]
[1756920963650,1.45404034,4480.4,4480.3,3.6085]
[1756920963948,0.924,4480.4,4480.3,3.9095]
[1756920965241,0.4164,4481.0,4480.4,0.301]
[1756920965441,0.2933,4481.1,4481.0,0.301]
[1756920965648,0.2933,4481.1,4481.0,0.7017]
[1756920965649,0.533448,4481.1,4481.0,0.7017]
[1756920965951,0.762448,4481.1,4481.0,0.7017]
[1756920966145,1.262448,4481.1,4481.0,0.7017]
[1756920966345,0.533448,4481.1,4481.0,0.7709]
[1756920966545,32.383,4481.2,4481.1,0.301]
[1756920966750,32.383,4481.2,4481.1,0.7017]
[1756920967258,32.883,4481.2,4481.1,0.7017]
[1756920967650,32.383,4481.2,4481.1,0.7017]
[1756920968451,32.91678176,4481.2,4481.1,0.7017]
[1756920970549,1.26278176,4481.2,4481.1,0.4007]
[1756920970746,1.45778176,4481.2,4481.1,0.4007]
[1756920971147,1.45778176,4481.2,4481.1,0.2044]
[1756920971353,0.5248,4481.0,4480.9,3.2078]
[1756920971543,1.35209949,4481.0,4480.9,3.2078]
[1756920974055,1.35209949,4481.0,4480.9,3.4094]
[1756920974356,1.45799949,4481.0,4480.9,3.9071]
[1756920974550,1.58229949,4481.0,4480.9,3.6044]
[1756920975057,1.58229949,4481.0,4480.9,3.2078]
[1756920976258,1.58229949,4481.0,4480.9,3.4094]
[1756920977058,1.22899949,4481.0,4480.9,3.9071]
[1756920977262,1.45799949,4481.0,4480.9,3.9071]
[1756920977558,1.58229949,4481.0,4480.9,3.6044]
[1756920979452,1.58229949,4481.0,4480.9,3.4094]
[1756920979758,1.58229949,4481.0,4480.9,3.6044]
[1756920980260,0.53399949,4481.0,4480.9,3.9071]
[1756920980448,0.76299949,4481.0,4480.9,3.9071]
[1756920981152,0.53399949,4481.0,4480.9,3.9071]
[1756920981359,0.4845,4481.7,4481.6,0.6993]
[1756920981557,1.2479102,4481.7,4481.6,0.6993]
[1756920981759,1.4498102,4481.7,4481.6,0.3966]
[1756920983556,1.4498102,4481.7,4481.6,0.2016]
[1756920986060,1.20240157,4482.8,4482.6,0.3966]
[1756920986259,0.6864,4483.4,4483.3,0.3966]
[1756920986458,0.9154,4483.4,4483.3,0.3966]
[1756920987058,0.7135,4483.4,4483.3,0.6993]
[1756920987263,0.229,4483.4,4483.3,0.6993]
[1756920988061,0.5163,4483.4,4483.3,0.6993]
[1756920988658,0.7135,4483.4,4483.3,0.6993]
[1756920988863,0.7135,4483.4,4483.3,0.3966]
[1756920988864,0.9154,4483.4,4483.3,0.3966]
[1756920989067,0.2873,4483.3,4483.0,3.2078]
[1756920989266,0.6864,4483.1,4483.0,3.4094]
[1756920990065,0.6864,4483.1,4483.0,3.9071]
[1756920990261,0.9144,4483.1,4483.0,3.6044]
[1756920990463,0.9144,4483.1,4483.0,3.4094]
[1756920992758,0.2873,4483.1,4483.0,3.9071]
[1756920992957,0.5234,4483.5,4483.4,0.2016]
[1756920993162,0.7514,4483.5,4483.4,0.2016]
[1756920993564,1.0387,4483.5,4483.4,0.2016]
[1756920993765,0.7514,4483.5,4483.0,3.2078]
[1756920993963,0.1972,4483.1,4483.0,3.6044]
[1756920994164,0.6864,4483.1,4483.0,3.6044]
[1756920994565,0.6864,4483.1,4482.5,3.5105]
[1756920994566,0.3991,4483.1,4482.5,3.5105]
[1756920994766,0.4845,4482.6,4482.5,3.9071]
[1756920994970,0.2873,4482.9,4482.8,0.6993]
[1756920995164,0.7125,4483.0,4482.9,0.3027]
[1756920995373,0.7125,4483.0,4482.9,0.6993]
[1756920995665,1.0387,4483.0,4482.9,0.6993]
[1756920995871,1.0387,4483.0,4482.9,0.3966]
[1756920996961,0.4845,4483.0,4482.9,0.6993]
[1756920997167,0.4116,4483.5,4483.0,0.3719]
[1756920997368,0.4845,4484.1,4484.0,0.6993]
[1756920997566,32.151,4484.3,4484.2,0.3966]
[1756920997773,32.8635,4484.3,4484.2,0.6993]
[1756920997970,33.0654,4484.3,4484.2,0.3966]
[1756920998172,33.59387609,4484.3,4484.2,0.2016]
[1756921000666,33.59387609,4484.3,4484.2,0.3966]
[1756921001276,0.1243,4484.0,4483.8,3.2078]
[1756921001469,1.44287609,4483.9,4483.8,3.2078]
[1756921002661,1.44287609,4483.9,4483.8,3.4094]
[1756921003066,1.44287609,4483.9,4483.8,3.2078]
[1756921003570,1.44287609,4483.9,4483.8,3.3987]
[1756921003867,0.9144,4483.9,4483.8,3.3987]
[1756921004073,0.9144,4483.9,4483.8,3.2078]
[1756921005368,0.9144,4483.9,4483.8,3.3987]
[1756921005762,0.5003,4484.2,4484.1,0.7049]
[1756921005970,0.228,4484.2,4484.1,0.7049]
[1756921006777,0.5369,4484.2,4484.1,0.7049]
[1756921007868,0.7283,4484.2,4484.1,0.7049]
[1756921008774,0.228,4484.2,4484.1,0.7049]
[1756921009476,0.5369,4484.2,4484.1,0.7049]
[1756921010571,0.7283,4484.2,4484.1,0.7049]
[1756921012171,1.25754664,4484.2,4484.1,0.7049]
[1756921012678,1.46074664,4484.2,4484.1,0.3926]
[1756921015279,0.3946,4483.9,4483.8,3.3987]
[1756921015578,1.46074664,4483.9,4483.8,3.2078]
[1756921015781,0.1141,4483.5,4483.3,3.2078]
[1756921016087,1.46074664,4483.4,4483.3,3.2078]
[1756921016276,1.46074664,4483.4,4483.3,3.6004]
[1756921016679,1.46074664,4483.4,4483.3,3.9127]
[1756921017286,1.46074664,4483.4,4483.3,3.2078]
[1756921018078,1.46074664,4483.4,4483.3,3.3987]
[1756921020284,1.46074664,4483.4,4483.3,3.2078]
[1756921020678,0.7035,4482.4,4482.3,3.2078]
[1756921020981,1.46074664,4482.4,4482.3,3.2078]
[1756921025685,1.46074664,4482.4,4482.3,3.3987]
[1756921026281,0.9315,4482.4,4482.3,3.3987]
[1756921026584,0.9315,4482.4,4482.3,3.6004]
[1756921028689,0.9315,4482.4,4482.3,0.3926]
[1756921028888,0.9315,4482.4,4482.3,0.7049]
[1756921029282,0.8176,4482.0,4481.9,3.3987]
[1756921029484,1.0456,4482.0,4481.9,3.3987]
[1756921030683,0.228,4482.0,4481.9,3.6004]
[1756921030991,0.228,4482.0,4481.9,3.9127]
[1756921031479,0.7283,4482.0,4481.9,3.9127]
[1756921031683,1.0456,4482.0,4481.9,3.6004]
[1756921031986,1.0456,4482.0,4481.9,0.3926]
[1756921032185,1.0456,4482.0,4481.9,0.6861]
[1756921033785,0.1913,4482.4,4482.3,0.3828]
[1756921034089,0.7231,4482.4,4482.3,0.6763]
[1756921034285,0.0079,4482.6,4482.3,0.6763]
[1756921034485,0.0079,4482.6,4482.5,0.4483]
[1756921034687,0.9341,4482.6,4482.5,0.6763]
[1756921034886,0.9341,4482.6,4482.5,0.3828]
[1756921035187,0.9341,4482.6,4481.9,3.2078]
[1756921035188,0.6982,4482.4,4482.3,0.6763]
[1756921035384,0.4951,4482.4,4482.3,0.6763]
[1756921035784,0.5397,4482.6,4482.3,0.3828]
[1756921035984,0.5397,4482.6,4482.5,0.3828]
[1756921036189,0.731,4482.6,4482.5,0.6763]
[1756921036392,0.9341,4482.6,4482.5,0.3828]
[1756921036784,0.9341,4482.6,4482.5,0.6763]
[1756921037491,0.9341,4482.6,4482.5,0.3828]
[1756921037691,0.9341,4482.6,4482.5,0.1925]
[1756921038291,0.8144,4482.5,4482.4,0.1925]
[1756921038588,0.1913,4482.0,4481.9,3.6938]
[1756921038791,0.7231,4482.0,4481.9,3.8841]
[1756921039984,0.228,4482.0,4481.9,3.8841]
[1756921041295,0.5318,4482.0,4481.9,3.8841]
[1756921041886,0.7231,4482.0,4481.9,3.8841]
[1756921042091,1.0424,4482.0,4481.9,3.8841]
[1756921042701,0.228,4482.0,4481.9,3.8841]
[1756921043797,0.5318,4482.0,4481.9,3.8841]
[1756921044201,1.06170308,4482.0,4481.9,3.8841]
[1756921044795,1.57230308,4482.0,4481.9,3.5906]
[1756921044995,1.57230308,4482.0,4481.4,3.2078]
[1756921044996,0.8144,4481.5,4481.4,3.2078]
[1756921045199,0.3038,4481.4,4480.8,3.2078]
[1756921045396,0.4951,4480.9,4480.8,4.91133633]
[1756921045700,1.02500308,4480.9,4480.8,4.91133633]
[1756921046196,1.22810308,4480.9,4480.8,4.91133633]
[1756921046398,1.22810308,4480.9,4480.8,0.3828]
[1756921046995,0.92430308,4480.9,4480.8,0.1925]
[1756921047204,0.72120308,4480.9,4480.8,1.70353633]
[1756921047391,0.72120308,4480.9,4480.8,0.6763]
[1756921048094,1.02500308,4480.9,4480.8,0.6763]
[1756921048297,0.83370308,4480.9,4480.8,0.6763]
[1756921048995,1.02500308,4480.9,4480.8,0.6763]
[1756921049192,1.22810308,4480.9,4480.8,0.3828]
[1756921049502,1.02500308,4480.9,4480.8,0.6763]
[1756921050002,1.22810308,4480.9,4480.8,0.3828]
[1756921050204,1.22810308,4480.9,4480.8,0.1925]
[1756921050400,0.6982,4480.8,4480.7,0.1925]
[1756921050702,0.3944,4480.7,4480.0,0.2935]
[1756921050899,0.8144,4480.5,4480.4,0.1925]
[1756921051099,0.8144,4480.0,4479.9,3.5906]
[1756921051299,1.0424,4480.0,4479.9,3.5906]
[1756921051703,0.7231,4480.0,4479.9,3.8841]
[1756921052107,0.3038,4481.2,4480.9,0.2935]
[1756921052301,0.6982,4481.2,4481.1,0.3828]
[1756921052495,1.45599013,4481.2,4480.6,0.2935]
[1756921052700,1.45599013,4481.2,4480.6,0.3828]
[1756921052701,0.4951,4480.7,4480.6,0.3828]
[1756921053107,0.6982,4480.7,4480.6,0.3828]
[1756921053309,1.22798702,4480.7,4480.6,0.3828]
[1756921053510,1.02488702,4480.7,4480.6,0.6763]
[1756921054113,0.3038,4480.9,4480.6,0.3828]
[1756921054413,0.6982,4480.9,4480.8,0.1925]
[1756921054799,0.3944,4480.9,4480.4,3.2078]
[1756921054999,0.8144,4480.5,4480.4,3.4003]
[1756921055199,1.0424,4480.5,4480.4,3.4003]
[1756921055401,0.3038,4480.4,4479.7,3.5013]
[1756921055600,0.4951,4479.8,4479.7,3.8841]
[1756921055807,0.3442,4480.5,4479.8,0.6763]
[1756921055808,0.228,4479.9,4479.8,0.6763]
[1756921056913,0.3038,4480.2,4479.9,0.2935]
[1756921057110,0.203,4480.1,4479.9,0.2935]
[1756921057319,0.6981,4480.1,4480.0,0.6763]
[1756921057926,0.6982,4480.9,4480.8,0.1903]
[1756921058124,0.6982,4480.9,4480.8,0.3828]
[1756921058125,1.45514844,4480.9,4480.8,0.3828]
[1756921058326,0.1162,4480.5,4479.7,3.2078]
[1756921058522,0.4951,4479.8,4479.7,3.8841]
[1756921058825,0.6224,4479.9,4479.7,3.2078]
[1756921059025,0.3038,4479.8,4479.7,3.4003]
[1756921059218,0.3038,4479.8,4479.2,3.2078]
[1756921059219,0.6982,4479.3,4479.2,3.2078]
[1756921059414,0.3038,4479.2,4478.7,3.2078]
[1756921059621,0.4951,4478.8,4478.7,3.8841]
[1756921060320,3.2078,4479.7,4479.3,0.6763]
[1756921060515,0.228,4479.8,4479.7,0.6763]
[1756921060718,0.228,4479.8,4479.6,3.59517846]
[1756921060719,0.3038,4480.4,4480.1,0.3828]
[1756921060927,0.228,4480.3,4480.2,0.6763]
[1756921061321,0.7231,4480.3,4480.2,0.6763]
[1756921061524,0.008,4480.5,4480.2,0.3828]
[1756921061721,0.008,4480.5,4480.4,0.3995]
[1756921061927,0.008,4480.5,4480.4,0.6863]
[1756921063223,0.4935,4480.5,4480.4,0.6863]
[1756921063823,0.7979,4480.5,4480.0,3.2078]
[1756921064123,0.4855,4479.5,4479.4,3.6073]
[1756921064321,0.4031,4480.0,4479.5,0.2868]
[1756921064521,0.7899,4480.0,4479.9,0.1935]
[1756921064723,1.0179,4480.0,4479.9,0.1935]
[1756921064918,1.0179,4480.0,4479.5,0.2868]
[1756921066823,0.7899,4480.0,4479.9,0.3995]
[1756921067029,1.0179,4480.0,4479.9,0.6863]
[1756921067525,0.2884,4479.9,4479.4,3.2078]
[1756921067731,0.3427,4480.0,4479.4,3.6073]
[1756921067929,0.2884,4479.9,4479.4,3.8941]
[1756921068128,0.3427,4480.0,4479.5,0.2868]
[1756921068325,0.3868,4480.0,4479.9,0.6863]
[1756921068526,0.6148,4480.0,4479.9,0.6863]
[1756921068830,0.9032,4480.0,4479.9,0.6863]
[1756921069433,1.0179,4480.0,4479.9,0.6863]
[1756921070432,0.228,4480.0,4479.9,0.6863]
[1756921070631,0.7135,4480.0,4479.9,0.6863]
[1756921071022,1.0179,4480.0,4479.9,0.3995]
[1756921071733,1.0179,4480.0,4479.4,3.2078]
[1756921071933,0.7899,4479.5,4479.4,3.6073]
[1756921072132,0.7899,4479.5,4479.4,3.8941]
[1756921072727,0.4031,4480.0,4479.4,3.8941]
[1756921072923,0.228,4479.9,4479.4,3.8941]
[1756921073126,0.6752,4479.9,4479.8,0.1935]
[1756921073326,0.9032,4479.9,4479.8,0.3995]
[1756921074133,0.9032,4479.9,4479.8,0.1935]
[1756921074732,0.9032,4479.9,4479.8,0.6863]
[1756921075121,0.9032,4479.9,4479.8,0.3995]
[1756921075326,0.9032,4479.9,4479.8,0.6863]
[1756921075824,0.7135,4479.9,4479.8,0.6863]
[1756921076228,3.2078,4480.3,4479.9,0.2868]
[1756921076528,1.43334789,4480.2,4480.1,0.3995]
[1756921077929,1.43334789,4480.2,4479.5,0.118]
[1756921077930,1.43334789,4480.2,4479.4,3.2078]
[1756921078235,0.6752,4479.9,4479.8,0.1935]
[1756921079433,1.20551051,4479.9,4479.8,0.1935]
[1756921079634,0.6752,4479.9,4479.8,0.3995]
[1756921079829,0.6752,4479.9,4479.8,0.6863]
[1756921080332,0.228,4479.9,4479.8,0.6863]
[1756921080634,35.5539,4480.9,4480.8,0.3995]
[1756921080829,36.50191734,4480.9,4480.8,0.3995]
[1756921081025,36.50191734,4480.9,4480.8,0.1935]
[1756921081227,36.79031734,4480.9,4480.8,0.1935]
[1756921081628,36.79031734,4480.9,4480.1,0.2868]
[1756921081832,0.6752,4480.7,4480.6,0.3995]
[1756921082032,1.20551734,4480.7,4480.6,0.3995]
[1756921082442,0.228,4480.7,4480.6,0.3995]
[1756921082645,0.008,4480.8,4480.6,0.3995]
[1756921082941,0.228,4480.7,4480.6,0.6863]
[1756921083940,0.008,4480.8,4480.7,0.2868]
[1756921084243,0.6832,4480.8,4480.7,0.1935]
[1756921084444,0.1147,4480.5,4480.4,3.2078]
[1756921084637,1.0179,4480.5,4480.4,3.4013]
[1756921084831,1.54802337,4480.5,4480.4,3.4013]
[1756921085238,1.54802337,4480.5,4480.4,3.6073]
[1756921085942,1.54800781,4480.5,4480.4,3.6073]
[1756921086840,0.5015,4480.0,4479.4,3.2078]
[1756921087039,0.2884,4479.5,4479.4,3.8941]
[1756921087241,0.228,4479.9,4479.5,0.2868]
[1756921087442,0.228,4479.9,4479.8,0.1935]
[1756921087443,0.6148,4479.9,4479.8,0.1935]
[1756921087742,1.14494518,4479.9,4479.8,0.1935]
[1756921087941,1.43334518,4479.9,4479.8,0.1935]
[1756921088336,0.7899,4479.5,4479.4,3.4013]
[1756921088537,1.32567097,4479.5,4478.5,0.0682]
[1756921088744,0.7899,4479.0,4478.9,3.2078]
[1756921088942,1.32572919,4479.0,4478.9,3.2078]
[1756921090844,0.53582919,4479.0,4478.9,8.11737]
[1756921091146,0.7899,4479.0,4478.9,3.6073]
[1756921091452,1.0179,4479.0,4478.9,3.4013]
[1756921091852,0.5174,4479.0,4478.9,3.8984]
[1756921092150,0.7193,4479.0,4478.9,3.8984]
[1756921093543,1.0431,4479.0,4478.9,3.2078]
[1756921093744,0.1193,4478.5,4478.4,3.2078]
[1756921093949,0.8271,4478.5,4478.4,3.2078]
[1756921094143,1.36282434,4478.5,4478.4,3.2078]
[1756921094344,0.4064,4477.8,4477.7,3.3978]
[1756921094552,0.9368,4477.8,4477.7,3.3978]
[1756921097048,0.9368,4477.8,4477.7,0.19]
[1756921098858,0.6354,4477.8,4477.2,3.4989]
[1756921099054,0.7078,4477.3,4477.2,3.3978]
[1756921099255,0.7078,4477.3,4477.2,3.6021]
[1756921099758,0.5033,4477.3,4477.2,3.8932]
[1756921099955,0.3014,4477.4,4477.3,0.2911]
[1756921100258,0.3014,4477.4,4477.3,0.6854]
[1756921100955,0.229,4477.8,4477.3,0.6854]
[1756921101259,0.3014,4477.7,4477.4,0.2911]
[1756921101461,0.5033,4477.7,4477.6,0.6854]
[1756921102762,0.7313,4477.7,4477.6,0.6854]
[1756921102960,0.228,4477.8,4477.7,0.2911]